fUSD/lending_fUSD_20250826
["ID","MTS","AMOUNT","RATE_DAILY","PERIOD"]
[381399831,1756185125217,-400.0,0.0001726,2]
[381399832,1756185125227,-607.63,0.0001726,2]
[381399833,1756185125236,-746.63,0.0001726,2]
[381399834,1756185125246,-1194.34,0.0001726,2]
[381399835,1756185125255,-693.74,0.0001726,2]
[381399836,1756185125264,-1162.61,0.0001726,2]
[381399837,1756185125274,-400.0,0.0001726,2]
[381399838,1756185125284,-400.0,0.0001726,2]
[381399839,1756185125294,-1247.85,0.0001726,2]
[381399840,1756185125303,-486.92711489,0.0001726,2]
[381399841,1756185125313,-1322.8,0.0001726,2]
[381399842,1756185125323,-1126.65,0.0001726,2]
[381399843,1756185125332,-1143.63,0.0001726,2]
[381399844,1756185125342,-400.0,0.0001726,2]
[381399845,1756185125352,-400.0,0.0001726,2]
[381399846,1756185125361,-401.21,0.0001726,2]
[381399847,1756185125371,-1186.97,0.0001726,2]
[381399848,1756185125381,-400.0,0.0001726,2]
[381399849,1756185125390,-225.18593702,0.0001726,2]
[381399850,1756185125400,-400.0,0.0001726,2]
[381399851,1756185125411,-400.0,0.0001726,2]
[381399852,1756185125421,-848.53,0.0001726,2]
[381399853,1756185125431,-400.0,0.0001726,2]
[381399854,1756185125441,-2500.29,0.0001726,2]
[381399855,1756185125451,-558.67,0.0001726,2]
[381399856,1756185125461,-1260.63,0.0001726,2]
[381399857,1756185125471,-830.37,0.0001726,2]
[381399858,1756185125481,-493.99,0.0001726,2]
[381399859,1756185125491,-400.0,0.0001726,2]
[381399860,1756185125501,-729.3,0.0001726,2]
[381399861,1756185125510,-403.5,0.0001726,2]
[381399862,1756185125520,-1075.45,0.0001726,2]
[381399863,1756185125530,-629.25,0.0001726,2]
[381399864,1756185125540,-1243.55,0.0001726,2]
[381399865,1756185125550,-778.75,0.0001726,2]
[381399866,1756185125559,-669.39,0.0001726,2]
[381399867,1756185125570,-1415.03,0.0001726,2]
[381399868,1756185125579,-510.95,0.0001726,2]
[381399869,1756185125589,-441.46,0.0001726,2]
[381399870,1756185125599,-643.96,0.0001726,2]
[381399871,1756185125608,-1253.5,0.0001726,2]
[381399872,1756185125618,-482.41,0.0001726,2]
[381399873,1756185125629,-400.0,0.0001726,2]
[381399874,1756185125639,-1271.72,0.0001726,2]
[381399875,1756185125650,-927.88,0.0001726,2]
[381399876,1756185125659,-400.0,0.0001726,2]
[381399877,1756185125669,-610.73,0.0001726,2]
[381399878,1756185125679,-1563.25,0.0001726,2]
[381399879,1756185125688,-776.3,0.0001726,2]
[381399880,1756185125699,-1204.66,0.0001726,2]
[381399881,1756185125710,-2203.12,0.0001726,2]
[381399882,1756185125722,-485.53,0.0001726,2]
[381399883,1756185125732,-653.47,0.0001726,2]
[381399884,1756185125743,-776.55,0.0001726,2]
[381399885,1756185125753,-921.22,0.0001726,2]
[381399886,1756185125762,-400.0,0.0001726,2]
[381399887,1756185125772,-873.21,0.0001726,2]
[381399888,1756185125782,-2653.07,0.0001726,2]
[381399889,1756185125793,-1796.94,0.0001726,2]
[381399890,1756185125805,-1133.83,0.0001726,2]
[381399891,1756185125817,-638.38,0.0001726,2]
[381399892,1756185125826,-400.0,0.0001726,2]
[381399893,1756185125836,-1042.94,0.0001726,2]
[381399894,1756185125846,-973.16,0.0001726,2]
[381399895,1756185125855,-400.0,0.0001726,2]
[381399896,1756185125868,-400.0,0.0001726,2]
[381399897,1756185125880,-1306.94,0.0001726,2]
[381399898,1756185125890,-1246.11,0.0001726,2]
[381399899,1756185125899,-974.02,0.0001726,2]
[381399900,1756185125910,-564.47,0.0001726,2]
[381399901,1756185125920,-1071.63,0.0001726,2]
[381399902,1756185125931,-400.0,0.0001726,2]
[381399903,1756185125940,-1298.36,0.0001726,2]
[381399904,1756185125950,-1308.0,0.0001726,2]
[381399905,1756185125960,-400.0,0.0001726,2]
[381399906,1756185125970,-400.0,0.0001726,2]
[381399907,1756185125981,-794.01,0.0001726,2]
[381399908,1756185125991,-1575.82,0.0001726,2]
[381399909,1756185126001,-873.76,0.0001726,2]
[381399910,1756185126010,-1745.1,0.0001726,2]
[381399911,1756185126021,-486.46,0.0001726,2]
[381399912,1756185126031,-642.74,0.0001726,2]
[381399913,1756185126042,-400.0,0.0001726,2]
[381399914,1756185126052,-400.0,0.0001726,2]
[381399915,1756185126063,-400.0,0.0001726,2]
[381399916,1756185126073,-400.0,0.0001726,2]
[381399917,1756185126084,-1383.52,0.0001726,2]
[381399918,1756185126094,-400.0,0.0001726,2]
[381399919,1756185126104,-14035.6,0.0001726,2]
[381399920,1756185126114,-1333.29,0.0001726,2]
[381399921,1756185126123,-1162.66,0.0001726,2]
[381399922,1756185126133,-1690.87,0.0001726,2]
[381399923,1756185126143,-468.31,0.0001726,2]
[381399924,1756185126154,-1347.3,0.0001726,2]
[381399925,1756185126165,-1850.27,0.0001726,2]
[381399926,1756185126174,-400.0,0.0001726,2]
[381399927,1756185126185,-400.0,0.0001726,2]
[381399928,1756185126195,-755.25,0.0001726,2]
[381399929,1756185126210,-508.94,0.0001726,2]
[381399930,1756185126220,-400.0,0.0001726,2]
[381399931,1756185126230,-400.0,0.0001726,2]
[381399932,1756185126239,-422.3,0.0001726,2]
[381399933,1756185126249,-400.0,0.0001726,2]
[381399934,1756185126259,-820.45,0.0001726,2]
[381399935,1756185126268,-798.33,0.0001726,2]
[381399936,1756185126277,-702.22,0.0001726,2]
[381399937,1756185126287,-1637.36,0.0001726,2]
[381399938,1756185126680,-876.07,0.0001726,2]
[381399939,1756185126690,-1096.7,0.0001726,2]
[381399940,1756185126699,-1243.32,0.0001726,2]
[381399941,1756185126709,-2388.43,0.0001726,2]
[381399942,1756185126723,-411.17,0.0001726,2]
[381399943,1756185126732,-1269.78,0.0001726,2]
[381399944,1756185126742,-776.3,0.0001726,2]
[381399945,1756185126751,-400.0,0.0001726,2]
[381399946,1756185126761,-448.25639605,0.0001726,2]
[381399947,1756185126771,-400.0,0.0001726,2]
[381399948,1756185126780,-833.87,0.0001726,2]
[381399949,1756185126791,-342.47,0.0001726,2]
[381399950,1756185126801,-1320.36,0.0001726,2]
[381399951,1756185126811,-664.83,0.0001726,2]
[381399952,1756185126820,-400.0,0.0001726,2]
[381399953,1756185126831,-1533.36,0.0001726,2]
[381399954,1756185126840,-1425.5,0.0001726,2]
[381399955,1756185126850,-875.73,0.0001726,2]
[381399956,1756185126859,-400.0,0.0001726,2]
[381399957,1756185126869,-400.0,0.0001726,2]
[381399958,1756185126879,-1254.63,0.0001726,2]
[381399959,1756185126889,-400.0,0.0001726,2]
[381399960,1756185126899,-1006.43,0.0001726,2]
[381399961,1756185126908,-1671.71,0.0001726,2]
[381399962,1756185126918,-698.91,0.0001726,2]
[381399963,1756185126928,-1240.6,0.0001726,2]
[381399964,1756185126938,-1222.49,0.0001726,2]
[381399965,1756185126948,-4543.96,0.0001726,2]
[381399966,1756185126957,-400.0,0.0001726,2]
[381399967,1756185126967,-400.0,0.0001726,2]
[381399968,1756185126976,-504.63,0.0001726,2]
[381399969,1756185126985,-1088.96,0.0001726,2]
[381399970,1756185126995,-1822.56,0.0001726,2]
[381399971,1756185127006,-747.78,0.0001726,2]
[381399972,1756185127016,-400.0,0.0001726,2]
[381399973,1756185127026,-400.0,0.0001726,2]
[381399974,1756185127036,-400.0,0.0001726,2]
[381399975,1756185127047,-627.11,0.0001726,2]
[381399976,1756185127059,-660.33,0.0001726,2]
[381399977,1756185127069,-400.0,0.0001726,2]
[381399978,1756185127081,-400.0,0.0001726,2]
[381399979,1756185127092,-1047.06,0.0001726,2]
[381399980,1756185127103,-1209.63,0.0001726,2]
[381399981,1756185127113,-400.0,0.0001726,2]
[381399982,1756185127123,-499.76,0.0001726,2]
[381399983,1756185127133,-1613.6,0.0001726,2]
[381399984,1756185127143,-1092.11,0.0001726,2]
[381399985,1756185127154,-2455.59,0.0001726,2]
[381399986,1756185127164,-1000.72,0.0001726,2]
[381399987,1756185127175,-746.01,0.0001726,2]
[381399988,1756185127187,-857.55,0.0001726,2]
[381399989,1756185127197,-2351.64,0.0001726,2]
[381399990,1756185127209,-789.93,0.0001726,2]
[381399991,1756185127220,-847.66,0.0001726,2]
[381399992,1756185127230,-400.0,0.0001726,2]
[381399993,1756185127242,-1208.51,0.0001726,2]
[381399994,1756185127253,-400.0,0.0001726,2]
[381399995,1756185127264,-400.0,0.0001726,2]
[381399996,1756185127275,-1175.13,0.0001726,2]
[381399997,1756185127286,-825.35,0.0001726,2]
[381399998,1756185127295,-1983.08,0.0001726,2]
[381399999,1756185127305,-559.42,0.0001726,2]
[381400000,1756185127317,-400.0,0.0001726,2]
[381400001,1756185127328,-1655.27,0.0001726,2]
[381400002,1756185127338,-616.31,0.0001726,2]
[381400003,1756185127347,-740.89,0.0001726,2]
[381400004,1756185127357,-890.19,0.0001726,2]
[381400005,1756185127367,-436.96,0.0001726,2]
[381400006,1756185127376,-732.16,0.0001726,2]
[381400007,1756185127385,-1496.96,0.0001726,2]
[381400008,1756185127394,-400.0,0.0001726,2]
[381400009,1756185127404,-400.0,0.0001726,2]
[381400010,1756185127414,-719.3,0.0001726,2]
[381400011,1756185127423,-1097.31,0.0001726,2]
[381400012,1756185127432,-1327.78,0.0001726,2]
[381400013,1756185127443,-1575.63,0.0001726,2]
[381400014,1756185127453,-400.0,0.0001726,2]
[381400015,1756185127463,-400.0,0.0001726,2]
[381400016,1756185127473,-758.49,0.0001726,2]
[381400017,1756185127485,-400.0,0.0001726,2]
[381400018,1756185127495,-566.6,0.0001726,2]
[381400019,1756185127505,-664.16,0.0001726,2]
[381400020,1756185127514,-721.84,0.0001726,2]
[381400021,1756185127524,-1654.85,0.0001726,2]
[381400022,1756185127534,-878.97,0.0001726,2]
[381400023,1756185127545,-983.56,0.0001726,2]
[381400024,1756185127554,-1000.0,0.00017289,2]
[381400025,1756185127564,-440.0,0.0001729,2]
[381400026,1756185127574,-573.0,0.00017323,2]
[381400027,1756185127584,-331.78,0.0001737,2]
[381400028,1756185127594,-2315.0,0.00017372,2]
[381400029,1756185127604,-1000.0,0.00017383,2]
[381400030,1756185127613,-506.05058286,0.00017423,2]
[381400032,1756185127623,-3000.0,0.00017423,2]
[381400033,1756185127632,-2500.0,0.00017435,2]
[381400034,1756185127642,-2500.0,0.00017435,2]
[381400035,1756185127651,-1500.0,0.00017458,2]
[381400036,1756185127661,-1003.1706499,0.00017458,2]
[381400037,1756185127671,-1000.0,0.00017478,2]
[381400038,1756185127680,-10222.02898099,0.000175,2]
[381400039,1756185127689,-287.61899177,0.00017531,2]
[381400040,1756185127699,-346.92554585,0.00017531,2]
[381400041,1756185127708,-400.0,0.00017532,2]
[381400042,1756185127722,-721.12765535,0.00017532,2]
[381400043,1756185127733,-300.0,0.00017533,2]
[381400044,1756185127745,-300.0,0.00017533,2]
[381400045,1756185127757,-300.0,0.00017533,2]
[381400046,1756185127768,-300.0,0.00017533,2]
[381400047,1756185127777,-500.0,0.00017534,2]
[381400048,1756185127789,-500.0,0.00017534,2]
[381400049,1756185127801,-400.0,0.00017534,2]
[381400050,1756185127812,-400.0,0.00017534,2]
[381400051,1756185127823,-400.0,0.00017534,2]
[381400052,1756185127833,-400.0,0.00017534,2]
[381400053,1756185127842,-400.0,0.00017534,2]
[381400054,1756185127853,-400.0,0.00017534,2]
[381400055,1756185127863,-400.0,0.00017534,2]
[381400056,1756185127874,-400.0,0.00017534,2]
[381400057,1756185127886,-400.0,0.00017534,2]
[381400058,1756185127897,-190.0,0.00017534,2]
[381400059,1756185127907,-400.0,0.00017534,2]
[381400060,1756185127916,-400.0,0.00017534,2]
[381400061,1756185127926,-400.0,0.00017534,2]
[381400062,1756185127937,-400.0,0.00017534,2]
[381400063,1756185127947,-401.38945366,0.00017534,2]
[381400064,1756185127956,-400.0,0.00017534,2]
[381400065,1756185127967,-400.0,0.00017534,2]
[381400066,1756185127976,-745.29,0.00017534,2]
[381400067,1756185127986,-655.13,0.00017534,2]
[381400068,1756185127995,-1184.86,0.00017534,2]
[381400069,1756185128004,-400.0,0.00017534,2]
[381400070,1756185128013,-400.0,0.00017534,2]
[381400071,1756185128023,-731.86,0.00017534,2]
[381400072,1756185128035,-666.29,0.00017534,2]
[381400073,1756185128049,-1133.88,0.00017534,2]
[381400074,1756185128059,-400.0,0.00017534,2]
[381400075,1756185128070,-199.65836075,0.00017534,2]
[381400076,1756185128080,-797.53,0.00017534,2]
[381400077,1756185128090,-400.0,0.00017534,2]
[381400078,1756185128102,-1547.04,0.00017534,2]
[381400079,1756185128112,-1036.12,0.00017534,2]
[381400080,1756185128122,-609.39,0.00017534,2]
[381400081,1756185128132,-400.0,0.00017534,2]
[381400082,1756185128141,-464.99,0.00017534,2]
[381400083,1756185128151,-400.0,0.00017534,2]
[381400084,1756185128161,-357.17331363,0.00017534,2]
[381400085,1756185128170,-400.0,0.00017534,2]
[381400086,1756185128179,-827.29,0.00017534,2]
[381400087,1756185128188,-400.0,0.00017534,2]
[381400088,1756185128198,-400.0,0.00017534,2]
[381400089,1756185128207,-400.0,0.00017534,2]
[381400090,1756185128216,-764.28,0.00017534,2]
[381400091,1756185128226,-1443.29,0.00017534,2]
[381400092,1756185128236,-1136.83,0.00017534,2]
[381400093,1756185128246,-400.0,0.00017534,2]
[381400094,1756185128255,-415.22,0.00017534,2]
[381400095,1756185128264,-400.0,0.00017534,2]
[381400096,1756185128274,-660.63,0.00017534,2]
[381400097,1756185128283,-617.5,0.00017534,2]
[381400098,1756185128293,-764.69,0.00017534,2]
[381400099,1756185128302,-400.0,0.00017534,2]
[381400100,1756185128311,-422.40955642,0.00017534,2]
[381400101,1756185128322,-400.0,0.00017534,2]
[381400102,1756185128331,-541.83,0.00017534,2]
[381400103,1756185128340,-400.0,0.00017534,2]
[381400104,1756185128350,-1159.27,0.00017534,2]
[381400105,1756185128359,-729.09,0.00017534,2]
[381400106,1756185128368,-418.16,0.00017534,2]
[381400107,1756185128378,-400.0,0.00017534,2]
[381400108,1756185128387,-647.47,0.00017534,2]
[381400109,1756185128396,-415.3,0.00017534,2]
[381400110,1756185128407,-444.7,0.00017534,2]
[381400111,1756185128416,-477.54,0.00017534,2]
[381400112,1756185128426,-1112.42,0.00017534,2]
[381400113,1756185128435,-1195.41,0.00017534,2]
[381400114,1756185128445,-866.18,0.00017534,2]
[381400115,1756185128454,-1119.37,0.00017534,2]
[381400116,1756185128463,-400.0,0.00017534,2]
[381400117,1756185128473,-621.68,0.00017534,2]
[381400118,1756185128482,-400.0,0.00017534,2]
[381400119,1756185128491,-587.15,0.00017534,2]
[381400120,1756185128500,-400.0,0.00017534,2]
[381400121,1756185128510,-400.0,0.00017534,2]
[381400122,1756185128519,-465.78,0.00017534,2]
[381400123,1756185128529,-448.52,0.00017534,2]
[381400124,1756185128538,-400.0,0.00017534,2]
[381400125,1756185128547,-400.0,0.00017534,2]
[381400126,1756185128556,-608.27,0.00017534,2]
[381400127,1756185128566,-2001.47,0.00017534,2]
[381400128,1756185128575,-1243.18,0.00017534,2]
[381400129,1756185128584,-916.84,0.00017534,2]
[381400130,1756185128593,-400.0,0.00017534,2]
[381400131,1756185128602,-400.0,0.00017534,2]
[381400132,1756185128612,-469.09,0.00017534,2]
[381400133,1756185128621,-400.0,0.00017534,2]
[381400134,1756185128630,-447.27,0.00017534,2]
[381400135,1756185128639,-400.0,0.00017534,2]
[381400136,1756185128648,-400.0,0.00017534,2]
[381400137,1756185128658,-474.53,0.00017534,2]
[381400138,1756185128667,-921.44,0.00017534,2]
[381400139,1756185128677,-782.75,0.00017534,2]
[381400140,1756185128686,-1096.56,0.00017534,2]
[381400141,1756185128695,-400.0,0.00017534,2]
[381400142,1756185128705,-726.95,0.00017534,2]
[381400143,1756185128719,-400.44,0.00017534,2]
[381400144,1756185128729,-815.91,0.00017534,2]
[381400145,1756185128743,-442.4,0.00017534,2]
[381400146,1756185128753,-400.0,0.00017534,2]
[381400147,1756185128763,-629.92,0.00017534,2]
[381400148,1756185128772,-400.0,0.00017534,2]
[381400149,1756185128781,-428.84,0.00017534,2]
[381400150,1756185128792,-752.25,0.00017534,2]
[381400151,1756185128802,-1048.98,0.00017534,2]
[381400152,1756185128811,-400.0,0.00017534,2]
[381400153,1756185128821,-400.0,0.00017534,2]
[381400154,1756185128830,-747.57,0.00017534,2]
[381400155,1756185128840,-564.67,0.00017534,2]
[381400156,1756185128849,-400.0,0.00017534,2]
[381400157,1756185128858,-317.64985394,0.00017534,2]
[381400158,1756185128868,-400.0,0.00017534,2]
[381400159,1756185128878,-400.0,0.00017534,2]
[381400160,1756185128887,-442.88,0.00017534,2]
[381400161,1756185128896,-686.01,0.00017534,2]
[381400162,1756185128906,-400.0,0.00017534,2]
[381400163,1756185128915,-812.7,0.00017534,2]
[381400164,1756185128924,-400.0,0.00017534,2]
[381400165,1756185128934,-410.65,0.00017534,2]
[381400166,1756185128948,-809.62,0.00017534,2]
[381400167,1756185128958,-400.0,0.00017534,2]
[381400168,1756185128968,-681.47,0.00017534,2]
[381400169,1756185128978,-668.22,0.00017534,2]
[381400170,1756185128988,-532.58,0.00017534,2]
[381400171,1756185128997,-400.0,0.00017534,2]
[381400172,1756185129007,-400.0,0.00017534,2]
[381400173,1756185129020,-400.0,0.00017534,2]
[381400174,1756185129031,-460.76,0.00017534,2]
[381400175,1756185129041,-749.37,0.00017534,2]
[381400176,1756185129051,-400.0,0.00017534,2]
[381400177,1756185129060,-664.98,0.00017534,2]
[381400178,1756185129070,-400.0,0.00017534,2]
[381400179,1756185129079,-956.41,0.00017534,2]
[381400180,1756185129089,-641.5,0.00017534,2]
[381400181,1756185129098,-1137.36,0.00017534,2]
[381400182,1756185129107,-400.0,0.00017534,2]
[381400183,1756185129116,-400.0,0.00017534,2]
[381400184,1756185129125,-416.62,0.00017534,2]
[381400185,1756185129135,-400.0,0.00017534,2]
[381400186,1756185129144,-723.42,0.00017534,2]
[381400187,1756185129280,-400.0,0.00017534,2]
[381400188,1756185129290,-1015.47,0.00017534,2]
[381400189,1756185129299,-459.3,0.00017534,2]
[381400190,1756185129309,-665.79,0.00017534,2]
[381400191,1756185129319,-1742.8,0.00017534,2]
[381400192,1756185129329,-400.0,0.00017534,2]
[381400193,1756185129338,-448.01,0.00017534,2]
[381400194,1756185129347,-400.0,0.00017534,2]
[381400195,1756185129357,-854.77,0.00017534,2]
[381400196,1756185129366,-644.5,0.00017534,2]
[381400197,1756185129375,-1214.11,0.00017534,2]
[381400198,1756185129384,-1098.15,0.00017534,2]
[381400199,1756185129393,-400.0,0.00017534,2]
[381400200,1756185129403,-600.46,0.00017534,2]
[381400201,1756185129412,-630.3,0.00017534,2]
[381400202,1756185129421,-875.07,0.00017534,2]
[381400203,1756185129432,-598.97,0.00017534,2]
[381400204,1756185129442,-400.0,0.00017534,2]
[381400205,1756185129451,-400.0,0.00017534,2]
[381400206,1756185129460,-400.0,0.00017534,2]
[381400207,1756185129470,-723.87,0.00017534,2]
[381400208,1756185129481,-400.0,0.00017534,2]
[381400209,1756185129491,-376.17487054,0.00017534,2]
[381400210,1756185129500,-849.33,0.00017534,2]
[381400211,1756185129510,-910.91,0.00017534,2]
[381400212,1756185129522,-886.48,0.00017534,2]
[381400213,1756185129532,-594.24,0.00017534,2]
[381400214,1756185129541,-423.36,0.00017534,2]
[381400215,1756185129550,-1012.16,0.00017534,2]
[381400216,1756185129559,-400.0,0.00017534,2]
[381400217,1756185129569,-400.0,0.00017534,2]
[381400218,1756185129578,-985.46,0.00017534,2]
[381400219,1756185129587,-445.79,0.00017534,2]
[381400220,1756185129599,-533.21,0.00017534,2]
[381400221,1756185129608,-401.68,0.00017534,2]
[381400222,1756185129616,-400.0,0.00017534,2]
[381400223,1756185129626,-400.0,0.00017534,2]
[381400224,1756185129636,-400.0,0.00017534,2]
[381400225,1756185129646,-400.0,0.00017534,2]
[381400226,1756185129657,-1383.65,0.00017534,2]
[381400227,1756185129667,-400.0,0.00017534,2]
[381400228,1756185129676,-400.0,0.00017534,2]
[381400229,1756185129688,-400.0,0.00017534,2]
[381400230,1756185129704,-400.0,0.00017534,2]
[381400231,1756185129717,-480.16,0.00017534,2]
[381400232,1756185129727,-400.0,0.00017534,2]
[381400233,1756185129735,-400.0,0.00017534,2]
[381400234,1756185129745,-400.0,0.00017534,2]
[381400235,1756185129754,-467.4,0.00017534,2]
[381400236,1756185129764,-627.36,0.00017534,2]
[381400237,1756185129773,-400.0,0.00017534,2]
[381400238,1756185129783,-400.0,0.00017534,2]
[381400239,1756185129793,-400.0,0.00017534,2]
[381400240,1756185129802,-766.2,0.00017534,2]
[381400241,1756185129811,-400.0,0.00017534,2]
[381400242,1756185129822,-1545.02,0.00017534,2]
[381400243,1756185129831,-772.35,0.00017534,2]
[381400244,1756185129840,-498.09,0.00017534,2]
[381400245,1756185129850,-400.0,0.00017534,2]
[381400246,1756185129859,-290.05870485,0.00017534,2]
[381400247,1756185129869,-560.42,0.00017534,2]
[381400248,1756185129878,-400.0,0.00017534,2]
[381400249,1756185129888,-420.61,0.00017534,2]
[381400250,1756185129897,-400.0,0.00017534,2]
[381400251,1756185129907,-400.0,0.00017534,2]
[381400252,1756185129916,-400.0,0.00017534,2]
[381400253,1756185129927,-757.83,0.00017534,2]
[381400254,1756185129936,-400.0,0.00017534,2]
[381400255,1756185129946,-534.78,0.00017534,2]
[381400256,1756185129959,-444.28,0.00017534,2]
[381400257,1756185129969,-558.67,0.00017534,2]
[381400258,1756185129981,-400.0,0.00017534,2]
[381400259,1756185129991,-400.0,0.00017534,2]
[381400260,1756185130000,-675.94,0.00017534,2]
[381400261,1756185130009,-400.0,0.00017534,2]
[381400262,1756185130019,-400.0,0.00017534,2]
[381400263,1756185130028,-400.0,0.00017534,2]
[381400264,1756185130037,-400.0,0.00017534,2]
[381400265,1756185130047,-400.0,0.00017534,2]
[381400266,1756185130056,-485.64,0.00017534,2]
[381400267,1756185130066,-400.0,0.00017534,2]
[381400268,1756185130075,-400.0,0.00017534,2]
[381400269,1756185130084,-400.0,0.00017534,2]
[381400270,1756185130094,-400.0,0.00017534,2]
[381400271,1756185130103,-400.0,0.00017534,2]
[381400272,1756185130112,-610.72,0.00017534,2]
[381400273,1756185130122,-400.0,0.00017534,2]
[381400274,1756185130131,-477.47,0.00017534,2]
[381400275,1756185130140,-400.0,0.00017534,2]
[381400276,1756185130150,-413.74402816,0.00017534,2]
[381400277,1756185130859,-151.0,0.00012,2]
[381400278,1756185130870,-268.88650942,0.00016438,2]
[381400280,1756185132556,-250.0,0.00011422,2]
[381400283,1756185160611,-250.0,0.0001161,2]
[381400310,1756185564873,160.0,0.00014402,7]
[381400350,1756186076781,840.0,0.00013,15]
[381400351,1756186076808,1976.95056708,0.00013,15]
[381400420,1756186232250,-186.57804022,0.00011889,2]
[381400422,1756186232259,-686.57576191,0.000119,2]
[381400429,1756186232384,-4.60265263,0.000119,2]
[381400430,1756186232393,-156.65684745,0.000119,2]
[381400431,1756186232403,-822.07990494,0.000119,2]
[381400433,1756186232412,-257.23223664,0.000119,2]
[381400434,1756186232422,-648.82835834,0.000119,2]
[381400435,1756186232433,-10471.48357994,0.000119,2]
[381400436,1756186232443,-250.0,0.00011939,2]
[381400437,1756186232452,-1200.0,0.00011988,2]
[381400438,1756186232461,-1200.0,0.00011989,2]
[381400439,1756186232470,-300.0,0.00011989,2]
[381400440,1756186232479,-150.0,0.00011989,2]
[381400441,1756186232488,-56641.2108517,0.0001199,2]
[381400442,1756186232497,-200.0,0.00011993,2]
[381400443,1756186232507,-151.0,0.00011993,2]
[381400444,1756186232519,-151.0,0.00011993,2]
[381400445,1756186232532,-159.77187403,0.00011993,2]
[381400446,1756186232542,-500.0,0.00011993,2]
[381400447,1756186232551,-151.0,0.00011993,2]
[381400448,1756186232560,-200.0,0.00011993,2]
[381400449,1756186232570,-500.0,0.00011993,2]
[381400450,1756186232579,-500.0,0.00011993,2]
[381400451,1756186232588,-492.85060238,0.00011993,2]
[381400452,1756186232598,-500.0,0.00011999,2]
[381400453,1756186232607,-356.49666075,0.00011999,2]
[381400454,1756186232616,-353.30498498,0.00011999,2]
[381400455,1756186232625,-390.98058974,0.00011999,2]
[381400456,1756186232635,-500.0,0.00011999,2]
[381400457,1756186232645,-500.0,0.00011999,2]
[381400458,1756186232654,-500.0,0.00011999,2]
[381400459,1756186232664,-500.0,0.00011999,2]
[381400460,1756186232673,-500.0,0.00011999,2]
[381400461,1756186232683,-500.0,0.00011999,2]
[381400462,1756186232692,-500.0,0.00011999,2]
[381400463,1756186232701,-500.0,0.00011999,2]
[381400464,1756186232711,-500.0,0.00011999,2]
[381400465,1756186232721,-500.0,0.00011999,2]
[381400466,1756186232730,-500.0,0.00011999,2]
[381400467,1756186232739,-500.0,0.00011999,2]
[381400468,1756186232749,-500.0,0.00011999,2]
[381400469,1756186232758,-500.0,0.00011999,2]
[381400470,1756186232767,-500.0,0.00011999,2]
[381400471,1756186232777,-500.0,0.00011999,2]
[381400472,1756186232786,-500.0,0.00011999,2]
[381400473,1756186232795,-500.0,0.00011999,2]
[381400474,1756186232804,-500.0,0.00011999,2]
[381400475,1756186232813,-500.0,0.00011999,2]